bitfinex-derivatives/quotes_BNBF0:USTF0_20250413
["timestamp","ask_amount","ask_price","bid_price","bid_amount"]
[1744557415899,0.29620029,585.11,584.28,3.617]
[1744557416606,0.34182191,585.1,584.28,3.617]
[1744557416906,0.29608938,585.09,584.28,3.617]
[1744557417105,0.34183359,585.08,584.28,3.617]
[1744557417306,0.29608938,585.07,584.28,3.617]
[1744557417907,0.34184528,585.06,584.28,3.617]
[1744557418104,0.29608938,585.05,584.28,3.617]
[1744557418410,0.6379405,585.05,584.28,3.617]
[1744557418608,0.63794634,585.04,584.28,3.617]
[1744557418803,0.63795219,585.03,584.28,3.617]
[1744557419008,0.63795803,585.02,584.28,3.617]
[1744557419209,0.29608938,585.01,584.28,3.617]
[1744557420105,0.34188034,585.0,584.28,3.617]
[1744557420409,0.29608938,584.99,584.28,3.617]
[1744557420910,0.34189203,584.98,584.28,3.617]
[1744557421106,0.29608938,584.97,584.28,3.617]
[1744557421311,0.34190371,584.96,584.28,3.617]
[1744557421611,0.29608938,584.95,584.28,3.617]
[1744557421812,0.34191541,584.94,584.28,3.617]
[1744557422111,0.29608938,584.93,584.28,3.617]
[1744557422711,0.3419271,584.92,584.28,3.617]
[1744557422906,0.29590116,584.91,584.28,3.617]
[1744557423207,0.34193879,584.9,584.28,3.617]
[1744557423410,0.29590116,584.89,584.28,3.617]
[1744557424307,0.34193879,584.9,584.28,3.617]
[1744557424512,0.29589725,584.89,584.28,3.617]
[1744557424711,0.34195048,584.88,584.28,3.617]
[1744557424911,0.29589725,584.87,584.28,3.617]
[1744557425808,0.63982194,584.86,584.28,3.617]
[1744557426012,0.63786527,584.85,584.28,3.617]
[1744557426213,0.29589725,584.84,584.28,3.617]
[1744557426515,0.34197972,584.83,584.28,3.617]
[1744557426710,0.29589725,584.82,584.28,3.617]
[1744557427115,0.34199141,584.81,584.28,3.617]
[1744557427316,0.29589725,584.8,584.28,3.617]
[1744557427616,0.34200311,584.79,584.28,3.617]
[1744557428017,0.29601319,584.78,584.28,3.617]
[1744557428217,0.3420148,584.77,584.28,3.617]
[1744557428420,0.29601319,584.76,584.28,3.617]
[1744557428620,0.3420265,584.75,584.28,3.617]
[1744557428819,0.29601319,584.74,584.28,3.617]
[1744557429218,0.3420382,584.73,584.28,3.617]
[1744557429420,0.29601319,584.72,584.28,3.617]
[1744557429616,0.3420499,584.71,584.28,3.617]
[1744557429815,0.29601319,584.7,584.28,3.617]
[1744557430122,0.29601319,584.7,584.28,1.113]
[1744557430123,0.3420616,584.69,584.28,1.113]
[1744557430315,0.29601319,584.68,584.28,1.113]
[1744557430620,0.3420733,584.67,584.28,1.113]
[1744557431027,0.29598813,584.66,584.28,1.113]
[1744557431720,0.342085,584.65,584.28,1.113]
[1744557431922,0.29598813,584.64,584.28,1.113]
[1744557432221,0.34209671,584.63,584.28,1.113]
[1744557432416,0.29598813,584.62,584.28,1.113]
[1744557432720,0.34210841,584.61,584.28,1.113]
[1744557432920,0.29598813,584.6,584.28,1.113]
[1744557433523,0.34210841,584.61,584.28,1.113]
[1744557433922,0.34210841,584.61,584.28,0.658]
[1744557436724,0.29604572,584.6,584.28,0.658]
[1744557437621,0.34210841,584.61,584.28,0.658]
[1744557437826,0.29604948,584.6,584.28,0.658]
[1744557441627,0.34210841,584.61,584.28,0.658]
[1744557447532,0.34210841,584.61,584.2,0.627]
[1744557448533,0.34210841,584.61,584.18,0.601]
[1744557448931,0.29595741,584.6,584.18,0.601]
[1744557449232,0.29595741,584.6,584.17,1.567]
[1744557450736,0.29595741,584.6,584.17,2.047]
[1744557451737,0.29595741,584.6,584.17,2.479]
[1744557451932,0.29595741,584.6,584.17,3.065]
[1744557455042,0.34210841,584.61,584.17,3.065]
[1744557455240,0.29597442,584.6,584.17,3.065]
[1744557455941,0.34210841,584.61,584.17,3.065]
[1744557471553,1.2961398,585.07,584.17,3.065]
[1744557471753,0.63776195,585.06,584.17,3.065]
[1744557472054,0.63776779,585.05,584.17,3.065]
[1744557472349,0.2977935,585.06,584.17,3.065]
[1744557472350,0.63777363,585.04,584.17,3.065]
[1744557472554,0.63777948,585.03,584.17,3.065]
[1744557472853,0.63778532,585.02,584.17,3.065]
[1744557473054,0.63779116,585.01,584.17,3.065]
[1744557473250,0.63779701,585.0,584.17,3.065]
[1744557473449,0.63780285,584.99,584.17,3.065]
[1744557473649,0.6378087,584.98,584.17,3.065]
[1744557473848,0.29591667,584.97,584.17,3.065]
[1744557474253,0.34190371,584.96,584.17,3.065]
[1744557474453,0.29594352,584.95,584.17,3.065]
[1744557474854,0.63785308,584.95,584.17,3.065]
[1744557475056,0.29594352,584.94,584.17,3.065]
[1744557477559,0.34190956,584.95,584.17,3.065]
[1744557477757,0.63792662,584.94,584.17,3.065]
[1744557477953,0.63793246,584.93,584.17,3.065]
[1744557478153,0.63793831,584.92,584.17,3.065]
[1744557478458,0.29601121,584.91,584.17,3.065]
[1744557480166,0.34193879,584.9,584.17,3.065]
[1744557480455,0.29601121,584.89,584.17,3.065]
[1744557481260,0.34195048,584.88,584.17,3.065]
[1744557481454,0.29601121,584.87,584.17,3.065]
[1744557481658,0.34196217,584.86,584.17,3.065]
[1744557482059,0.29608194,584.85,584.17,3.065]
[1744557482856,0.63804996,584.85,584.17,3.065]
[1744557483059,0.29608194,584.84,584.17,3.065]
[1744557483462,0.34196802,584.85,584.17,3.065]
[1744557483661,0.29609719,584.83,584.17,3.065]
[1744557483859,0.29609719,584.82,584.17,3.065]
[1744557484060,0.29609719,584.81,584.17,3.065]
[1744557484256,0.29609719,584.84,584.17,3.065]
[1744557484458,0.29609719,584.8,584.17,3.065]
[1744557484656,0.29609719,584.79,584.17,3.065]
[1744557484959,0.29609719,584.78,584.17,3.065]
[1744557485160,0.29609719,584.84,584.17,3.065]
[1744557485361,0.29609719,584.83,584.17,3.065]
[1744557485563,0.29609719,584.84,584.17,3.065]
[1744557486461,0.29609719,584.84,584.17,3.05445022]
[1744557486663,0.29609719,584.84,584.17,2.617]
[1744557486862,0.34196802,584.85,584.17,2.617]
[1744557487163,0.2960845,584.84,584.17,2.617]
[1744557488363,0.34196802,584.85,584.17,2.617]
[1744557488564,0.29562,584.84,584.17,2.617]
[1744557489869,0.34196802,584.85,584.17,2.617]
[1744557490070,0.29558586,584.84,584.17,2.617]
[1744557490672,0.34196802,584.85,584.17,2.617]
[1744557490969,0.29554788,584.84,584.17,2.617]
[1744557491472,0.34196802,584.85,584.17,2.617]
[1744557491672,0.29553436,584.84,584.17,2.617]
[1744557492368,0.34197972,584.83,584.17,2.617]
[1744557492672,0.29553436,584.82,584.17,2.617]
[1744557493971,0.34199141,584.81,584.17,2.617]
[1744557494168,0.29553436,584.8,584.17,2.617]
[1744557494368,0.34200311,584.79,584.17,2.617]
[1744557494572,0.29553436,584.78,584.17,2.617]
[1744557494773,0.29543153,584.77,584.17,2.617]
[1744557494975,0.29543153,584.78,584.17,2.617]
[1744557495169,0.29543153,584.77,584.17,2.617]
[1744557495375,0.29543153,584.78,584.17,2.617]
[1744557495870,0.34200311,584.79,584.17,2.617]
[1744557496078,0.29541448,584.78,584.17,2.617]
[1744557496273,0.5932819,584.78,584.17,2.617]
[1744557496473,0.29541448,584.77,584.17,2.617]
[1744557497771,0.29541448,584.78,584.17,2.617]
[1744557498072,0.29541448,584.77,584.17,2.617]
[1744557498272,0.29541448,584.78,584.17,2.617]
[1744557498871,0.29789547,584.77,584.17,2.617]
[1744557499073,0.29541448,584.76,584.17,2.617]
[1744557499272,0.29789547,584.77,584.17,2.617]
[1744557499472,0.29530742,584.76,584.17,2.617]
[1744557500777,0.29530742,584.78,584.17,2.617]
[1744557500977,0.29789547,584.75,584.17,2.617]
[1744557501177,0.29530637,584.74,584.17,2.617]
[1744557502182,0.3420382,584.73,584.17,2.617]
[1744557502578,0.29530637,584.72,584.17,2.617]
[1744557502776,0.3420499,584.71,584.17,2.617]
[1744557502975,0.29530637,584.7,584.17,2.617]
[1744557503179,0.3420616,584.69,584.17,2.617]
[1744557503380,0.29530637,584.68,584.17,2.617]
[1744557503581,0.3420733,584.67,584.17,2.617]
[1744557503781,0.29530637,584.66,584.17,2.617]
[1744557503979,0.63738552,584.66,584.17,2.617]
[1744557504181,0.29530637,584.65,584.17,2.617]
[1744557504779,0.34209085,584.64,584.17,2.617]
[1744557505078,0.29530637,584.63,584.17,2.617]
[1744557505284,0.34210256,584.62,584.17,2.617]
[1744557505482,0.29530637,584.61,584.17,2.617]
[1744557505781,0.29529439,584.6,584.17,2.617]
[1744557505984,0.29529439,584.61,584.17,2.617]
[1744557506179,0.34212011,584.59,584.17,2.617]
[1744557506481,0.29529439,584.58,583.45,0.29793755]
[1744557506684,0.29529439,584.58,583.46,0.31469]
[1744557506685,0.34213182,584.57,583.46,0.31469]
[1744557506879,0.29529439,584.56,583.45,0.29794265]
[1744557507083,0.34213182,584.57,583.46,0.76769]
[1744557507280,0.34213182,584.57,583.47,0.31469]
[1744557508786,0.34213182,584.57,583.46,0.453]
[1744557508989,0.34213182,584.57,583.47,0.31469623]
[1744557509391,0.34213182,584.57,583.48,0.61]
[1744557509588,0.34213182,584.57,583.49,0.31469623]
[1744557509789,0.34213182,584.57,583.49,0.90869623]
[1744557510091,0.34213182,584.57,583.5,1.71469623]
[1744557510289,0.29527863,584.56,583.51,0.31469623]
[1744557511891,0.34213182,584.57,583.5,1.4]
[1744557513196,0.2952448,584.56,583.5,1.4]
[1744557514594,0.34213182,584.57,583.5,1.4]
[1744557515895,0.29805876,584.56,583.5,1.4]
[1744557516796,0.34214352,584.55,583.5,1.4]
[1744557520000,0.34214352,584.55,583.51,0.31469252]
[1744557521395,0.34214352,584.55,583.52,0.31468873]
[1744557521594,0.34214352,584.55,583.53,0.31468873]
[1744557521798,0.29532341,584.54,583.51,0.31468873]
[1744557521998,0.34214352,584.55,583.52,0.31468873]
[1744557522198,0.34214352,584.55,583.51,0.31468873]
[1744557522500,0.29532195,584.54,583.51,0.31468873]
[1744557522895,0.29532195,584.54,583.52,0.476]
[1744557523098,0.29532195,584.54,583.53,0.31468873]
[1744557523497,0.29532195,584.54,583.53,0.94668873]
[1744557523698,0.34214352,584.55,583.54,0.31468873]
[1744557524796,0.34214352,584.55,583.53,0.632]
[1744557524998,0.34214352,584.55,583.54,0.31467742]
[1744557525804,0.29534175,584.54,583.54,0.31467742]
[1744557526002,0.34214352,584.55,583.53,0.632]
[1744557527998,0.34214352,584.55,583.54,0.3145929]
[1744557528598,1.2961398,585.96,583.54,0.3145929]
[1744557528802,0.34139014,585.84,583.54,0.3145929]
[1744557528999,0.29775656,584.97,583.54,0.3145929]
[1744557529302,0.29546754,584.96,583.54,0.3145929]
[1744557529503,0.29775401,585.04,583.56,0.34272397]
[1744557529804,0.29550209,585.03,583.57,0.3145929]
[1744557530001,0.34186865,585.02,583.59,0.34270635]
[1744557530200,0.29550209,585.01,583.6,0.3145929]
[1744557530901,0.29550209,585.01,583.61,0.3426946]
[1744557531105,0.29550209,585.01,583.62,0.3145929]
[1744557531603,0.29550209,585.01,583.63,0.34268286]
[1744557531805,0.29550209,585.01,583.64,0.3145929]
[1744557532002,0.29550209,585.01,583.65,0.34267112]
[1744557532202,0.29550209,585.01,583.66,0.3145929]
[1744557532405,0.34187449,585.01,583.67,0.34265937]
[1744557532606,0.34187449,585.01,583.68,0.3145929]
[1744557532902,0.34187449,585.01,583.69,0.34264763]
[1744557533106,0.34187449,585.01,583.7,0.3145929]
[1744557533303,0.34187449,585.01,583.71,0.34263589]
[1744557533507,0.34187449,585.01,583.72,0.3145929]
[1744557533707,0.34187449,585.01,583.73,0.34262415]
[1744557534008,0.34187449,585.01,583.74,0.31449114]
[1744557534202,0.34187449,585.01,583.75,0.34261241]
[1744557534407,0.34187449,585.01,583.76,0.31449114]
[1744557535403,0.29536646,585.0,583.76,0.31449114]
[1744557535707,0.29536646,585.0,583.77,0.31449114]
[1744557535907,0.29536646,585.0,583.78,0.31449114]
[1744557536207,0.29536646,585.0,583.72,0.673]
[1744557536208,0.29536646,585.0,583.79,0.65708008]
[1744557536408,0.29536646,585.0,583.8,0.31449114]
[1744557536708,0.29536646,585.0,583.81,0.65706834]
[1744557537004,0.29536646,585.0,583.82,0.65706248]
[1744557537207,0.34187449,585.01,583.83,0.34256547]
[1744557537402,0.29536981,585.0,583.84,0.31444704]
[1744557537602,0.29536981,585.0,583.85,0.34255373]
[1744557537811,0.29536981,585.0,583.86,0.31444704]
[1744557538007,0.29536981,585.0,583.87,0.342542]
[1744557538208,0.29536981,585.0,583.88,0.31444704]
[1744557538405,0.29536981,585.0,583.89,0.34253027]
[1744557538610,0.29536981,585.0,583.9,0.31444704]
[1744557538911,0.34187449,585.01,583.89,0.34253027]
[1744557539114,0.29534201,585.0,583.9,0.31447033]
[1744557540516,0.34187449,585.01,583.89,0.34253027]
[1744557540815,0.29533695,585.0,583.9,0.3144725]
[1744557541817,0.34187449,585.01,583.9,0.3144725]
[1744557542513,0.34187449,585.01,583.89,0.34253027]
[1744557542717,0.34187449,585.01,583.9,0.31447042]
[1744557543118,0.34187449,585.01,583.9,0.484]
[1744557543318,0.34187449,585.01,583.91,0.31446276]
[1744557544820,0.34187449,585.01,583.92,0.314473]
[1744557545020,0.34187449,585.01,583.91,0.31447226]
[1744557545422,0.29532536,585.0,583.91,0.31447226]
[1744557547523,0.29532536,585.0,583.9,0.935]
[1744557547920,0.29532536,585.0,583.91,0.31453709]
[1744557548127,0.29532536,585.0,583.9,0.935]
[1744557548520,0.29532536,585.0,583.91,0.31454073]
[1744557549025,0.29532536,585.0,583.9,0.935]
[1744557549325,0.34187449,585.01,583.9,0.935]
[1744557549525,0.29534956,585.0,583.9,0.935]
[1744557549723,0.34188618,584.99,583.9,0.935]
[1744557549919,0.29534956,584.98,583.9,0.935]
[1744557550119,0.34189787,584.97,583.9,1.375]
[1744557550323,0.29534956,584.96,583.9,1.375]
[1744557550523,0.34190956,584.95,583.9,1.375]
[1744557550719,0.29534956,584.94,583.9,1.375]
[1744557550921,0.34192125,584.93,583.9,1.375]
[1744557551120,0.29534956,584.92,583.9,1.375]
[1744557551324,0.34193294,584.91,583.9,1.375]
[1744557551625,0.29534956,584.9,583.91,0.31456051]
[1744557551828,0.34194463,584.89,583.91,0.31456051]
[1744557552026,0.29534956,584.88,583.91,0.31456051]
[1744557552325,0.29534956,584.88,583.9,1.94]
[1744557552522,0.29534956,584.88,583.91,0.31453349]
[1744557552725,0.29534956,584.88,583.9,1.94]
[1744557552925,0.29534956,584.88,583.91,0.75551683]
[1744557553227,0.29534956,584.88,583.92,0.31451683]
[1744557554627,0.34194463,584.89,583.92,0.31451683]
[1744557555527,0.34194463,584.89,583.91,0.441]
[1744557555721,0.34194463,584.89,583.92,0.31450087]
[1744557559129,0.34194463,584.89,583.91,0.441]
[1744557562428,0.34194463,584.89,583.92,0.31451502]
[1744557562731,0.29537087,584.88,583.92,0.31451502]
[1744557562931,0.34194463,584.89,583.92,0.31451502]
[1744557563232,0.29536912,584.88,583.92,0.31451502]
[1744557563733,0.34194463,584.89,583.92,0.91251502]
[1744557563933,0.34194463,584.89,583.93,0.31451502]
[1744557564235,0.29537204,584.88,583.93,0.31451502]
[1744557568038,0.29537204,584.88,583.93,0.96751502]
[1744557568234,0.29537204,584.88,583.94,0.31451502]
[1744557569639,0.34194463,584.89,583.93,0.653]
[1744557569934,0.29540469,584.88,583.94,0.31451504]
[1744557571342,0.29544441,584.87,583.95,0.314501]
[1744557571540,0.29544441,584.88,583.94,0.314501]
[1744557571742,0.29544441,584.87,583.95,0.314501]
[1744557572041,0.29544441,584.86,583.96,0.314501]
[1744557572239,0.29544441,584.88,583.97,0.394]
[1744557572444,0.34194463,584.89,583.98,0.314501]
[1744557572645,0.29543596,584.88,583.98,0.314501]
[1744557572845,0.2954359,584.87,583.99,0.3145047]
[1744557573047,0.2954359,584.86,584.0,0.3145047]
[1744557573342,0.34194463,584.89,583.97,0.394]
[1744557573547,0.29544943,584.88,583.98,0.31450331]
[1744557573849,0.63739991,584.88,583.98,0.31450331]
[1744557574049,0.29532491,584.87,583.97,0.394]
[1744557574348,0.34196217,584.86,583.97,0.394]
[1744557574547,0.29533207,584.85,583.97,0.394]
[1744557574747,0.34197387,584.84,583.97,0.394]
[1744557574950,0.29533207,584.83,583.97,0.394]
[1744557575851,0.34198556,584.82,583.97,0.394]
[1744557576051,0.29532397,584.81,583.97,0.394]
[1744557576247,0.34199726,584.8,583.97,0.394]
[1744557576452,0.29532397,584.79,583.97,0.394]
[1744557576750,0.63732708,584.79,583.97,0.394]
[1744557576947,0.29532397,584.78,583.97,0.394]
[1744557577452,0.34200311,584.79,583.97,0.394]
[1744557577652,0.29537076,584.78,583.97,0.394]
[1744557579047,0.34200311,584.79,583.97,0.394]
[1744557579254,0.29534887,584.78,583.97,0.394]
[1744557580552,0.34200311,584.79,583.97,0.394]
[1744557580753,0.29535522,584.78,583.97,0.394]
[1744557582453,0.29535522,584.78,583.98,0.611]
[1744557583357,0.63736418,584.78,583.98,0.611]
[1744557583558,0.63737002,584.77,583.98,0.611]
[1744557583753,0.63737587,584.76,583.98,0.611]
[1744557583953,0.29535522,584.75,583.98,0.611]
[1744557584556,0.34203235,584.74,583.98,0.611]
[1744557584759,0.29535522,584.73,583.98,0.611]
[1744557584962,0.34204405,584.72,583.98,0.611]
[1744557585161,0.29535522,584.71,583.99,0.506]
[1744557585362,0.34205575,584.7,583.99,0.506]
[1744557585662,0.29532808,584.69,583.99,0.506]
[1744557585961,0.29532808,584.69,584.0,0.577]
[1744557586963,0.34205575,584.7,584.0,0.577]
[1744557587159,0.29538702,584.69,584.0,0.577]
[1744557589866,0.29538702,584.69,584.01,0.586]
[1744557590666,0.34206745,584.68,584.01,0.586]
[1744557595769,0.29537699,584.67,584.01,0.586]
[1744557596568,0.34206745,584.68,584.01,0.586]
[1744557596771,0.29537565,584.67,584.01,0.586]
[1744557599676,0.34206745,584.68,584.01,0.586]
[1744557599981,0.29536732,584.67,584.01,0.586]
[1744557600980,0.34206745,584.68,584.01,0.586]
[1744557601181,0.2953769,584.67,584.01,0.586]
[1744557606987,0.2953769,584.67,584.02,0.384]
[1744557607389,0.29536067,584.66,584.02,0.384]
[1744557607588,0.29536067,584.67,584.02,0.384]
[1744557607889,0.29536067,584.66,584.02,0.384]
[1744557608082,0.29536067,584.67,584.02,0.384]
[1744557608283,0.29536067,584.66,584.02,0.384]
[1744557608489,0.29536067,584.67,584.02,0.384]
[1744557608689,0.29536067,584.66,584.02,0.384]
[1744557608888,0.34206745,584.68,584.02,0.991]
[1744557609189,0.29536498,584.67,584.02,0.991]
[1744557610492,0.34206745,584.68,584.02,1.585]
[1744557610687,0.29539188,584.67,584.02,1.975]
[1744557613695,0.34206745,584.68,584.02,1.975]
[1744557613888,0.29538502,584.67,584.02,1.975]
[1744557614092,0.29538502,584.67,584.02,2.661]
[1744557615295,0.34206745,584.68,584.02,2.661]
[1744557615496,0.29537732,584.67,584.02,2.661]
[1744557618196,0.34207915,584.66,584.02,2.661]
[1744557618593,0.29536444,584.65,584.02,2.661]
[1744557618797,0.34209085,584.64,584.02,2.661]
[1744557619092,0.29536444,584.63,584.02,2.661]
[1744557619797,0.29536444,584.63,584.02,3.142]
[1744557621600,0.34209085,584.64,584.02,3.142]
[1744557621793,0.29537083,584.63,584.02,3.142]
[1744557630802,0.34209085,584.64,584.02,3.142]
[1744557635610,0.29563651,584.63,584.02,3.142]
[1744557636109,0.34209085,584.64,584.02,3.142]
[1744557636309,0.29564675,584.63,584.02,3.142]
[1744557655520,0.34209085,584.64,584.02,3.142]
[1744557655720,0.29533269,584.63,584.02,3.142]
[1744557657726,0.34209085,584.64,584.02,3.142]
[1744557675341,0.29514894,584.63,584.02,3.142]
[1744557677547,0.34209085,584.64,584.02,3.142]
[1744557677746,0.29512508,584.63,584.02,3.142]
[1744557679149,0.34209085,584.64,584.02,3.142]
[1744557679350,0.29512964,584.63,584.02,3.142]
[1744557680744,0.34209085,584.64,584.02,3.142]
[1744557704772,1.2961398,585.31,584.02,3.142]
[1744557705068,0.2977986,585.07,584.02,3.142]
[1744557705274,0.63679767,585.06,584.02,3.142]
[1744557705472,0.63680285,585.05,584.02,3.142]
[1744557705669,0.63680869,585.04,584.02,3.142]
[1744557705870,0.63681454,585.03,584.02,3.142]
[1744557706069,0.63682038,585.02,584.02,3.142]
[1744557706272,0.29495173,585.01,584.02,3.142]
[1744557706574,0.34186865,585.02,584.02,3.142]
[1744557706772,0.29497447,585.01,584.02,3.142]
[1744557708377,0.29497888,585.0,584.02,3.142]
[1744557708578,0.34186865,585.02,584.02,3.142]
[1744557708579,0.29497888,585.01,584.02,3.142]
[1744557708778,0.29497888,584.99,584.02,3.142]
[1744557708981,0.29497888,585.01,584.02,3.142]
[1744557709179,0.29497888,585.0,584.02,3.142]
[1744557709380,0.29497888,585.01,584.02,3.142]
[1744557709577,0.29497888,585.0,584.02,3.142]
[1744557709777,0.29497888,584.99,584.02,3.142]
[1744557709977,0.29497888,585.01,584.02,3.142]
[1744557710177,0.29497888,585.0,584.02,3.142]
[1744557710381,0.29497888,585.01,584.02,3.142]
[1744557711373,0.34186865,585.02,584.02,3.142]
[1744557711577,0.29513892,585.01,584.02,3.142]
[1744557712981,0.34186865,585.02,584.02,3.142]
[1744557713180,0.29520763,585.01,584.02,3.142]
[1744557716387,0.29520903,585.0,584.02,3.142]
[1744557716588,0.29520903,585.01,584.02,3.142]
[1744557716783,0.29520903,585.0,584.02,3.142]
[1744557716985,0.29520903,585.01,584.02,3.142]
[1744557717188,0.29520903,585.0,584.02,3.142]
[1744557717389,0.29520903,585.01,584.02,3.142]
[1744557717590,0.29520903,585.0,584.02,3.142]
[1744557717791,0.29520903,585.01,584.02,3.142]
[1744557719293,0.29520903,585.01,584.03,0.31450947]
[1744557719794,0.29520903,585.01,583.86,0.31450947]
[1744557719989,0.29520903,585.01,583.63,1.08603562]
[1744557719990,0.29520903,585.01,583.64,0.31450798]
[1744557720194,0.29520903,585.01,583.86,0.29781517]
[1744557720494,0.29520903,585.01,583.87,0.31450798]
[1744557720694,0.29520903,585.01,583.66,0.31450798]
[1744557720890,0.29520903,585.01,583.67,0.65716735]
[1744557721092,0.29520903,585.01,583.68,0.65716148]
[1744557721292,0.29520903,585.01,583.69,0.65715561]
[1744557721494,0.34188034,585.0,583.7,0.65714974]
[1744557721694,0.29520903,584.99,583.71,0.65714387]
[1744557721894,0.29520903,584.99,583.72,0.657138]
[1744557722089,0.29520903,584.99,583.73,0.65713213]
[1744557722294,0.29520903,584.99,583.74,0.65712626]
[1744557722495,0.29520903,584.99,583.75,0.65712039]
[1744557722795,0.29520903,584.99,583.76,0.65711453]
[1744557722991,0.29520903,584.99,583.77,0.65710866]
[1744557723195,0.29520903,584.99,583.78,0.65710279]
[1744557723396,0.29520903,584.99,583.79,0.31450798]
[1744557731604,0.29520903,584.99,583.8,0.34258307]
[1744557731805,0.29520903,584.99,583.81,0.31450798]
[1744557731997,0.34188034,585.0,583.82,0.65707852]
[1744557732199,0.29510581,584.99,583.83,0.31450718]
[1744557733004,0.34188034,585.0,583.82,0.34257134]
[1744557733300,0.29507976,584.99,583.83,0.31450716]
[1744557738411,0.34188034,585.0,583.82,0.34257134]
[1744557738611,0.29504887,584.99,583.83,0.31450725]
[1744557741713,0.29504887,584.99,583.84,0.441]
[1744557742009,0.29504887,584.99,583.85,0.31450725]
[1744557744215,0.29504887,584.99,583.86,0.549]
[1744557744412,0.29504887,584.99,583.87,0.31450725]
[1744557746118,0.29504887,584.99,583.88,0.508]
[1744557746317,0.29504887,584.99,583.89,0.31450725]
[1744557746715,0.34188034,585.0,583.88,0.508]
[1744557747013,0.29513051,584.99,583.89,0.31450861]
[1744557747317,0.29513051,584.99,583.89,0.89950861]
[1744557747518,0.29513051,584.99,583.9,0.31450861]
[1744557749118,0.29513051,584.99,583.9,1.09250861]
[1744557749414,0.29513051,584.99,583.91,0.31450861]
[1744557750112,0.29513916,584.98,583.92,0.31450314]
[1744557750419,0.29513916,584.97,583.93,0.31450314]
[1744557750619,0.29513916,584.99,583.91,0.31450314]
[1744557750814,0.29513916,584.96,583.92,0.31450314]
[1744557751019,0.29513916,584.95,583.91,0.31450314]
[1744557751223,0.29513916,584.99,583.92,0.31450314]
[1744557751420,0.29513916,584.99,583.9,0.778]
[1744557751421,0.29513916,584.99,583.91,0.31450314]
[1744557751621,0.29513916,584.99,583.92,0.31450314]
[1744557751815,0.29513916,584.99,583.91,0.31450314]
[1744557752020,0.29513916,584.99,583.92,0.31450314]
[1744557752321,0.29513916,584.99,583.91,0.31450314]
[1744557752621,0.29513916,584.99,583.9,0.778]
[1744557752622,0.29513916,584.99,583.92,0.31450314]
[1744557752817,0.29513916,584.99,583.91,0.31450314]
[1744557753020,0.29513916,584.99,583.92,0.31450314]
[1744557753220,0.29513916,584.99,583.91,0.31450314]
[1744557753420,0.29513916,584.99,583.92,0.34251267]
[1744557753617,0.34188034,585.0,583.93,0.31450314]
[1744557753816,0.34188034,585.0,583.94,0.34250094]
[1744557754015,0.29521232,584.99,583.95,0.31450314]
[1744557754221,0.29521232,584.99,583.95,0.89750314]
[1744557754422,0.29521232,584.99,583.96,0.31450314]
[1744557757123,0.29521232,584.99,583.97,0.34248334]
[1744557757324,0.29521232,584.99,583.98,0.31450314]
[1744557758624,0.29521232,584.99,583.99,0.34247161]
[1744557758818,0.29521232,584.99,584.0,0.31450314]
[1744557759023,0.29521232,584.99,584.0,0.65696889]
[1744557759223,0.29521232,584.99,584.01,0.31450314]
[1744557759725,0.34188034,585.0,584.0,0.34246575]
[1744557759927,0.29523947,584.99,584.01,0.31440822]
[1744557762929,0.34188034,585.0,584.0,0.34246575]
[1744557763126,0.29521548,584.99,584.01,0.31441717]
[1744557765231,0.34188034,585.0,584.02,0.34245402]
[1744557765432,0.34188034,585.0,584.03,0.31441717]
[1744557765732,0.34188034,585.0,584.04,0.34244229]
[1744557766024,0.34188034,585.0,584.05,0.31441717]
[1744557766227,0.34188034,585.0,584.04,0.34244229]
[1744557766432,0.34188034,585.0,584.05,0.31438671]
[1744557767832,0.34188034,585.0,584.04,0.34244229]
[1744557768033,0.34188034,585.0,584.05,0.31438853]
[1744557774339,0.34188034,585.0,584.04,0.34244229]
[1744557774539,0.34188034,585.0,584.05,0.72038336]
[1744557774741,0.34188034,585.0,584.06,0.31438336]
[1744557776346,0.34188034,585.0,584.05,1.056]
[1744557777546,0.34188034,585.0,584.05,1.72]
[1744557778746,0.34188034,585.0,584.05,2.208]